fUST/lending_fUST_20260412
["ID","MTS","AMOUNT","RATE_DAILY","PERIOD"]
[420330824,1775973046342,-966.81607567,0.00014782,2]
[420330826,1775973046352,-966.81607567,0.00014782,2]
[420330828,1775973046362,-966.81607567,0.00014782,2]
[420330830,1775973046371,-966.81607567,0.00014782,2]
[420330832,1775973046381,-966.81607567,0.00014782,2]
[420330834,1775973046391,-966.81607567,0.00014782,2]
[420330836,1775973046402,-500.0,0.00014783,2]
[420330839,1775973046414,-151.0,0.00014783,2]
[420330841,1775973046425,-151.0,0.00014783,2]
[420330843,1775973046435,-151.0,0.00014783,2]
[420330845,1775973046445,-151.0,0.00014783,2]
[420330846,1775973046456,-151.0,0.00014783,2]
[420330848,1775973046467,-151.0,0.00014783,2]
[420330850,1775973046478,-151.0,0.00014783,2]
[420330852,1775973046489,-151.0,0.00014783,2]
[420330854,1775973046499,-151.0,0.00014783,2]
[420330857,1775973046510,-151.0,0.00014783,2]
[420330859,1775973046522,-151.0,0.00014783,2]
[420330861,1775973046532,-151.0,0.00014783,2]
[420330863,1775973046541,-151.0,0.00014783,2]
[420330865,1775973046551,-151.0,0.00014783,2]
[420330867,1775973046562,-151.0,0.00014783,2]
[420330869,1775973046571,-183.736502,0.00014783,2]
[420330870,1775973046581,-151.0,0.00014783,2]
[420330872,1775973046591,-151.0,0.00014783,2]
[420330874,1775973046602,-206.990741,0.00014783,2]
[420330876,1775973046614,-33592.24475387,0.00014783,2]
[420331441,1775974232123,-997.06070842,0.0001,2]
[420331443,1775974232135,-560.0,0.0001,2]
[420331445,1775974232153,-169.1582879,0.00013065,2]
[420331447,1775974232171,-300.0,0.00013495,2]
[420331449,1775974232183,-300.0,0.00013495,2]
[420331451,1775974232196,-300.0,0.00013495,2]
[420331453,1775974232217,-271.0,0.00013495,2]
[420331455,1775974232231,-1200.0,0.00013495,2]
[420331457,1775974232248,-300.0,0.00013495,2]
[420331459,1775974232263,-9514.3880934,0.00013497,2]
[420331461,1775974232276,-1000.0,0.00013699,2]
[420331463,1775974232292,-177.0,0.00013748,2]
[420331465,1775974232315,-1000.0,0.00013783,2]
[420331467,1775974232325,-364.64219753,0.00013796,2]
[420331468,1775974232345,-475.63529088,0.00013796,2]
[420331471,1775974232357,-1902.54116353,0.00013796,2]
[420331473,1775974232367,-177.09077426,0.00013796,2]
[420331475,1775974232389,-1329.00160712,0.00013796,2]
[420331479,1775974232427,-1068.4430384,0.00013796,2]
[420331534,1775974238780,-1706.18219817,0.00013796,2]
[420331535,1775974238792,-1833.08645634,0.00013796,2]
[420331536,1775974238816,-5769.46803314,0.00013796,2]
[420331537,1775974238826,-914.29539089,0.00014393,2]
[420331538,1775974238839,-501.18441417,0.0001442,2]
[420331539,1775974238852,-160.0,0.00014446,2]
[420331540,1775974238871,-500.0,0.00014491,2]
[420331541,1775974238882,-500.0,0.00014491,2]
[420331542,1775974238892,-500.0,0.00014491,2]
[420331543,1775974238916,-500.0,0.00014491,2]
[420331544,1775974238926,-500.0,0.00014491,2]
[420331545,1775974238943,-500.0,0.00014491,2]
[420331546,1775974238969,-500.0,0.00014491,2]
[420331547,1775974238996,-500.0,0.00014491,2]
[420331548,1775974239011,-500.0,0.00014491,2]
[420331549,1775974239036,-500.0,0.00014491,2]
[420331550,1775974239051,-500.0,0.00014491,2]
[420331551,1775974239063,-500.0,0.00014491,2]
[420331552,1775974239091,-500.0,0.00014491,2]
[420331553,1775974239101,-500.0,0.00014491,2]
[420331554,1775974239128,-500.0,0.00014491,2]
[420331555,1775974239141,-500.0,0.00014491,2]
[420331556,1775974239157,-500.0,0.00014491,2]
[420331557,1775974239172,-600.0,0.00014491,2]
[420331558,1775974239184,-500.0,0.00014491,2]
[420331559,1775974239199,-500.0,0.00014491,2]
[420331560,1775974239212,-500.0,0.00014491,2]
[420331561,1775974239221,-500.0,0.00014491,2]
[420331562,1775974239236,-500.0,0.00014491,2]
[420331563,1775974239245,-500.0,0.00014491,2]
[420331564,1775974239260,-500.0,0.00014491,2]
[420331565,1775974239269,-186.61326716,0.00014495,2]
[420331566,1775974239283,-405.62290139,0.00014495,2]
[420331567,1775974239295,-500.0,0.00014495,2]
[420331568,1775974239305,-500.0,0.00014495,2]
[420331569,1775974239315,-500.0,0.00014495,2]
[420331570,1775974239328,-500.0,0.00014495,2]
[420331571,1775974239337,-500.0,0.00014495,2]
[420331572,1775974239351,-500.0,0.00014495,2]
[420331573,1775974239364,-500.0,0.00014495,2]
[420331574,1775974239375,-500.0,0.00014495,2]
[420331575,1775974239384,-500.0,0.00014495,2]
[420331576,1775974239394,-500.0,0.00014495,2]
[420331577,1775974239408,-500.0,0.00014495,2]
[420331578,1775974239420,-500.0,0.00014495,2]
[420331579,1775974239430,-500.0,0.00014495,2]
[420331580,1775974239439,-500.0,0.00014496,2]
[420331581,1775974239453,-500.0,0.00014496,2]
[420331582,1775974239464,-500.0,0.00014496,2]
[420331583,1775974239474,-151.0,0.00014497,2]
[420331584,1775974239490,-151.0,0.00014497,2]
[420331586,1775974239501,-537.68192576,0.00014498,2]
[420331587,1775974239512,-207.61001154,0.00014499,2]
[420331588,1775974239524,-151.0,0.00014499,2]
[420331589,1775974239540,-4298.05001627,0.000145,2]
[420331590,1775974239555,-42577.28427411,0.000145,2]
[420331591,1775974239578,-3223.66570962,0.000145,2]
[420331592,1775974239598,-151.0,0.000145,2]
[420331593,1775974239617,-231.9513313,0.00014765,2]
[420331594,1775974239630,-537.6845,0.00014765,2]
[420331595,1775974239656,-1957.856,0.00014765,2]
[420331596,1775974239669,-537.6845,0.00014765,2]
[420331597,1775974239683,-2150.738,0.00014765,2]
[420331598,1775974239719,-1228.1308453,0.00014778,2]
[420331599,1775974239753,-1026.145915,0.00014778,2]
[420331600,1775974239775,-622.69,0.00014783,2]
[420331601,1775974239809,-622.69,0.00014783,2]
[420331602,1775974239820,-622.69,0.00014783,2]
[420331603,1775974239859,-622.69,0.00014783,2]
[420331604,1775974239875,-153.0,0.00014783,2]
[420331605,1775974239906,-153.0,0.00014783,2]
[420331606,1775974239915,-153.0,0.00014783,2]
[420331607,1775974239937,-153.0,0.00014783,2]
[420331608,1775974239951,-172.69812064,0.00014783,2]
[420331609,1775974239961,-153.0,0.00014783,2]
[420331610,1775974239971,-153.0,0.00014783,2]
[420331611,1775974239989,-557.5788265,0.0001482,2]
[420331613,1775974239998,-368.27279121,0.0001482,2]
[420331615,1775974240009,-420.0,0.00014845,2]
[420331617,1775974240018,-578.20924308,0.00014875,2]
[420331619,1775974240033,-622.69,0.00014881,2]
[420331620,1775974240043,-622.69,0.00014881,2]
[420331621,1775974240054,-500.0,0.00014883,2]
[420331622,1775974240065,-269.46688188,0.00014885,2]
[420331624,1775974240080,-577.52810691,0.0001493,2]
[420331630,1775974241031,-495.840245,0.00014495,2]
[420331631,1775974241050,-4.159755,0.00014495,2]
[420331632,1775974241065,-22.07487816,0.0001493,2]
[420331633,1775974241078,-506.0,0.00014944,2]
[420331634,1775974241090,-1419.65508596,0.00014945,2]
[420331650,1775974243402,-500.0,0.00014495,2]
[420331651,1775974243419,-209.71350604,0.00014945,2]
[420331652,1775974243431,-173.61649396,0.00014974,2]
[420331662,1775974246313,-500.0,0.00014491,2]
[420331663,1775974246326,-500.0,0.00014491,2]
[420331664,1775974246338,-156.96770898,0.00014491,2]
[420331665,1775974246354,-516.48546747,0.00014491,2]
[420331666,1775974246367,-500.0,0.00014491,2]
[420331667,1775974246380,-500.0,0.00014491,2]
[420331668,1775974246392,-500.0,0.00014491,2]
[420331669,1775974246404,-500.0,0.00014491,2]
[420331670,1775974246416,-500.0,0.00014491,2]
[420331671,1775974246427,-500.0,0.00014491,2]
[420331672,1775974246438,-500.0,0.00014491,2]
[420331673,1775974246449,-500.0,0.00014491,2]
[420331674,1775974246461,-500.0,0.00014491,2]
[420331675,1775974246473,-500.0,0.00014491,2]
[420331676,1775974246485,-500.0,0.00014491,2]
[420331677,1775974246495,-332.38350604,0.00014974,2]
[420331678,1775974246507,-621.78829552,0.00014985,2]
[420331679,1775974246518,-500.0,0.00015,2]
[420331680,1775974246530,-160.0,0.00015,2]
[420331681,1775974246543,-150.331,0.00015005,2]
[420331682,1775974246555,-150.362,0.00015005,2]
[420331683,1775974246569,-150.388,0.00015005,2]
[420331684,1775974246585,-636.886,0.00015005,2]
[420331685,1775974246599,-645.0,0.00015005,2]
[420331686,1775974246614,-506.0,0.00015028,2]
[420331687,1775974246636,-644.79446246,0.0001504,2]
[420331688,1775974246647,-622.69,0.00015052,2]
[420331689,1775974246664,-506.0,0.00015066,2]
[420331690,1775974246684,-205.172325,0.00015068,2]
[420331691,1775974246705,-668.65185757,0.00015095,2]
[420331692,1775974246727,-693.3919763,0.0001515,2]
[420331693,1775974246749,-168.0,0.00015152,2]
[420331694,1775974246789,-506.0,0.00015163,2]
[420331695,1775974246803,-672.0,0.00015165,2]
[420331696,1775974246833,-5748.92740066,0.00015186,2]
[420331697,1775974246867,-2167.28014924,0.00015186,2]
[420331698,1775974246887,-485.51251018,0.00015187,2]
[420331699,1775974246909,-151.0,0.00015187,2]
[420331700,1775974246919,-151.0,0.00015187,2]
[420331701,1775974246939,-151.0,0.00015187,2]
[420331702,1775974246949,-151.0,0.00015187,2]
[420331703,1775974246963,-151.0,0.00015187,2]
[420331704,1775974246985,-151.0,0.00015187,2]
[420331705,1775974246995,-151.0,0.00015187,2]
[420331706,1775974247005,-151.0,0.00015187,2]
[420331707,1775974247020,-151.0,0.00015187,2]
[420331708,1775974247030,-151.0,0.00015187,2]
[420331709,1775974247039,-151.68053369,0.00015187,2]
[420331710,1775974247050,-719.04747942,0.00015205,2]
[420331711,1775974247068,-2101.17426505,0.00015205,2]
[420331712,1775974247162,-1730.58082905,0.00015205,2]
[420331713,1775974247172,-168.0,0.00015212,2]
[420331714,1775974247182,-168.0,0.00015213,2]
[420331715,1775974247192,-506.0,0.00015238,2]
[420331716,1775974247201,-506.0,0.00015245,2]
[420331717,1775974247211,-745.65223616,0.0001526,2]
[420331718,1775974247221,-746.00594691,0.00015286,2]
[420331719,1775974247232,-2981.03976387,0.00015286,2]
[420331720,1775974247242,-506.0,0.00015308,2]
[420331721,1775974247252,-557.5788265,0.00015313,2]
[420331722,1775974247261,-579.86166421,0.00015313,2]
[420331747,1775975432480,-1000.0,0.00013699,2]
[420331748,1775975432494,-615.0,0.00013699,2]
[420331749,1775975432516,-250.002362,0.00014149,2]
[420331750,1775975432533,-209.64680095,0.0001429,2]
[420331751,1775975432548,-160.0,0.00014429,2]
[420331752,1775975432573,-500.0,0.00014491,2]
[420331753,1775975432585,-500.0,0.00014491,2]
[420331754,1775975432599,-500.0,0.00014495,2]
[420331755,1775975432618,-84.07135144,0.00014499,2]
[420331756,1775975432632,-415.92864856,0.00014499,2]
[420331757,1775975432646,-219.23911045,0.00014499,2]
[420331758,1775975432672,-280.76088955,0.00014499,2]
[420331759,1775975432687,-841.35752164,0.000145,10]
[420331761,1775975438738,-340.20247836,0.000145,10]
[420331762,1775975438749,-500.0,0.00014521,2]
[420331763,1775975438759,-85.42318628,0.00014747,2]
[420331764,1775975438771,-452.26131372,0.00014747,2]
[420331765,1775975438784,-2092.02647698,0.00014747,2]
[420331837,1775975443628,-58.71152302,0.00014747,2]
[420331838,1775975443640,-500.0,0.00014782,2]
[420331839,1775975443651,-557.5788265,0.00014802,2]
[420331840,1775975443676,-406.78391951,0.00014852,2]
[420331841,1775975443688,-93.21608049,0.00014852,2]
[420331842,1775975443707,-578.20924308,0.00014857,2]
[420331843,1775975443717,-168.0,0.0001487,2]
[420331844,1775975443728,-268.57368233,0.00014912,2]
[420331963,1775975446554,-331.02930274,0.00014912,2]
[420331964,1775975446564,-537.6845,0.00014949,2]
[420331965,1775975446589,-2207.0,0.00014958,2]
[420331966,1775975446605,-645.0,0.00014958,2]
[420331967,1775975446614,-738.0,0.00014958,2]
[420331968,1775975446630,-184.0,0.00014958,2]
[420331969,1775975446643,-441.0,0.00014958,2]
[420331970,1775975446653,-621.78829552,0.00014967,2]
[420331971,1775975446672,-500.0,0.00014976,2]
[420331972,1775975446681,-517.54740292,0.00014976,2]
[420331973,1775975446692,-111.37945717,0.00014984,2]
[420331974,1775975550892,195.03,2.001e-05,2]
[420331975,1775975550929,254.97,2.001e-05,2]
[420332020,1775976632923,-1163.34750901,0.00011,10]
[420332022,1775976632943,-269.08724583,0.00011,10]
[420332024,1775976632976,-1966.11974943,0.00011,10]
[420332030,1775976638835,-6601.44549573,0.00011,10]
[420332031,1775976638870,-7730.48475387,0.00011,2]
[420332032,1775976638882,-736.62524613,0.00011,2]
[420332033,1775976638894,-574.0,0.00011,2]
[420332034,1775976638913,-5000.0,0.000115,10]
[420332035,1775976638923,-186.4677003,0.00012,2]
[420332036,1775976638931,-177.0,0.00013,2]
[420332037,1775976638941,-156.0,0.00013699,2]
[420332038,1775976638950,-1000.0,0.00013699,2]
[420332039,1775976638962,-1000.0,0.00013969,2]
[420332040,1775976638973,-160.0,0.00014022,2]
[420332041,1775976638983,-537.6845,0.00014495,2]
[420332042,1775976638992,-310.79817223,0.00014495,2]
[420332068,1775976646734,-1839.93982777,0.00014495,2]
[420332069,1775976646760,-557.5788265,0.0001455,2]
[420332070,1775976646773,-642.0,0.00014594,2]
[420332071,1775976646800,-713.2834691,0.00014594,2]
[420332072,1775976646884,-1493.7165309,0.00014594,2]
[420332073,1775976646906,-150.645,0.00014594,2]
[420332074,1775976646916,-578.20924308,0.00014605,2]
[420332075,1775976646928,-500.0,0.00014627,2]
[420332076,1775976646949,-500.0,0.00014627,2]
[420332077,1775976646959,-500.0,0.00014627,2]
[420332078,1775976646976,-500.0,0.00014627,2]
[420332079,1775976646992,-248.37022163,0.00014627,2]
[420332181,1775977838553,-808.69,0.00012329,2]
[420332183,1775977838599,-594.0,0.00012329,2]
[420332184,1775977838637,-1167.6570598,0.00012859,2]
[420332185,1775977838670,-763.8180387,0.00012859,2]
[420332186,1775977838697,-500.0,0.00013698,2]
[420332187,1775977838716,-1000.0,0.00013699,2]
[420332188,1775977838748,-2290.8213772,0.0001372,2]
[420332189,1775977838770,-500.0,0.00013896,2]
[420332190,1775977838797,-930.87676833,0.00013896,2]
[420332191,1775977838818,-160.0,0.00014044,2]
[420332192,1775977838837,-537.6845,0.00014522,2]
[420332193,1775977838850,-2150.738,0.00014522,2]
[420332194,1775977838866,-584.24334521,0.00014539,2]
[420332195,1775977838885,-500.0,0.00014539,2]
[420332196,1775977838901,-584.24334521,0.00014539,2]
[420332197,1775977838922,-391.21579988,0.00014539,2]
[420332198,1775977838938,-584.24334521,0.00014539,2]
[420332199,1775977838948,-584.24334521,0.00014539,2]
[420332200,1775977838971,-584.24334521,0.00014539,2]
[420332201,1775977838981,-584.24334521,0.00014539,2]
[420332202,1775977838991,-584.24334521,0.00014539,2]
[420332203,1775977839008,-584.24334521,0.00014539,2]
[420332204,1775977839021,-584.24334521,0.00014539,2]
[420332205,1775977839031,-584.24334521,0.00014539,2]
[420332206,1775977839040,-584.24334521,0.00014539,2]
[420332208,1775977839056,-584.24334521,0.00014539,2]
[420332210,1775977839067,-584.24334521,0.00014539,2]
[420332211,1775977839076,-584.24334521,0.00014539,2]
[420332213,1775977839086,-584.24334521,0.00014539,2]
[420332214,1775977839103,-584.24334521,0.00014539,2]
[420332215,1775977839112,-584.24334521,0.00014539,2]
[420332216,1775977839122,-584.24334521,0.00014539,2]
[420332217,1775977839132,-584.24334521,0.00014539,2]
[420332218,1775977839144,-584.24334521,0.00014539,2]
[420332219,1775977839153,-584.24334521,0.00014539,2]
[420332220,1775977839162,-584.24334521,0.00014539,2]
[420332221,1775977839172,-584.24334521,0.00014539,2]
[420332222,1775977839181,-584.24334521,0.00014539,2]
[420332223,1775977839192,-584.24334521,0.00014539,2]
[420332224,1775977839201,-584.24334521,0.00014539,2]
[420332225,1775977839211,-584.24334521,0.00014539,2]
[420332226,1775977839220,-194.89488991,0.00014539,2]
[420332227,1775977839233,-389.3484553,0.00014539,2]
[420332228,1775977839243,-584.24334521,0.00014539,2]
[420332229,1775977839252,-463.61867463,0.00014539,2]
[420332230,1775977839266,-120.62467058,0.00014539,2]
[420332231,1775977839276,-584.24334521,0.00014539,2]
[420332232,1775977839286,-584.24334521,0.00014539,2]
[420332233,1775977839298,-584.24334521,0.00014539,2]
[420332234,1775977839308,-584.24334521,0.00014539,2]
[420332235,1775977839319,-584.24334521,0.00014539,2]
[420332236,1775977839337,-584.24334521,0.00014539,2]
[420332237,1775977839348,-584.24334521,0.00014539,2]
[420332238,1775977839358,-584.24334521,0.00014539,2]
[420332239,1775977839371,-584.24334521,0.00014539,2]
[420332240,1775977839381,-584.24334521,0.00014539,2]
[420332241,1775977839390,-584.24334521,0.00014539,2]
[420332242,1775977839400,-584.24334521,0.00014539,2]
[420332243,1775977839409,-584.24334521,0.00014539,2]
[420332244,1775977839422,-584.24334521,0.00014539,2]
[420332245,1775977839432,-584.24334521,0.00014539,2]
[420332246,1775977839441,-584.24334521,0.00014539,2]
[420332247,1775977839451,-584.24334521,0.00014539,2]
[420332248,1775977839464,-584.24334521,0.00014539,2]
[420332249,1775977839474,-584.24334521,0.00014539,2]
[420332250,1775977839483,-500.0,0.0001454,2]
[420332251,1775977839493,-500.0,0.0001454,2]
[420332252,1775977839506,-500.0,0.0001454,2]
[420332253,1775977839516,-283.93603097,0.0001454,2]
[420332254,1775977839525,-500.0,0.0001454,2]
[420332255,1775977839534,-500.0,0.0001454,2]
[420332256,1775977839547,-500.0,0.0001454,2]
[420332257,1775977839557,-500.0,0.0001454,2]
[420332258,1775977839567,-312.36467237,0.0001454,2]
[420332259,1775977839576,-500.0,0.0001454,2]
[420332260,1775977839589,-274.80034578,0.0001454,2]
[420332261,1775977839603,-500.0,0.0001454,2]
[420332262,1775977839616,-500.0,0.0001454,2]
[420332263,1775977839625,-500.0,0.0001454,2]
[420332264,1775977839640,-500.0,0.0001454,2]
[420332265,1775977839650,-500.0,0.0001454,2]
[420332266,1775977839662,-500.0,0.0001454,2]
[420332267,1775977839677,-500.0,0.0001454,2]
[420332268,1775977839687,-500.0,0.0001454,2]
[420332269,1775977839696,-500.0,0.0001454,2]
[420332270,1775977839717,-500.0,0.0001454,2]
[420332271,1775977839726,-7580.59984203,0.00014541,2]
[420332277,1775977840973,-2234.07231819,0.00014541,2]
[420332278,1775977841068,-4197.25910506,0.00014541,2]
[420332292,1775977846053,-707.94494866,0.00012903,2]
[420332293,1775977846083,-21239.08541206,0.00014541,2]
[420332346,1775979031996,-606.0,0.00013127,2]
[420332348,1775979032013,-172.92572073,0.00013127,2]
[420332350,1775979032026,-562.91980513,0.00013201,2]
[420332351,1775979032042,-172.92572073,0.00013533,2]
[420332353,1775979032052,-1000.0,0.00013699,2]
[420332356,1775979032066,-194.697446,0.00013699,2]
[420332357,1775979032078,-1000.0,0.00013699,2]
[420332359,1775979032097,-168.0,0.00013876,2]
[420332361,1775979032109,-455.63271124,0.00013896,2]
[420332363,1775979032127,-172.92572073,0.00013952,2]
[420332365,1775979032148,-168.0,0.00014165,2]
[420332367,1775979032162,-168.0,0.00014271,2]
[420332369,1775979032198,-168.0,0.00014397,2]
[420332370,1775979032218,-168.0,0.00014409,2]
[420332372,1775979032247,-160.0,0.00014504,2]
[420332374,1775979032257,-300.0,0.00014517,2]
[420332376,1775979032270,-300.0,0.00014517,2]
[420332378,1775979032283,-300.0,0.00014517,2]
[420332380,1775979032297,-300.0,0.00014517,2]
[420332382,1775979032306,-300.0,0.0001452,2]
[420332384,1775979032318,-1200.0,0.0001452,2]
[420332386,1775979032338,-725.75707634,0.00014521,2]
[420332421,1775979038606,-830.59240296,0.00014462,2]
[420332423,1775979038616,-13432.81501816,0.00014521,2]
[420332424,1775979038627,-2291.4541163,0.00014521,2]
[420332425,1775979038642,-537.6845,0.00014526,2]
[420332426,1775979038656,-537.6845,0.00014526,2]
[420332427,1775979038665,-2150.738,0.00014526,2]
[420332428,1775979038680,-500.0,0.0001454,2]
[420332429,1775979038699,-500.0,0.0001454,2]
[420332431,1775979038708,-500.0,0.0001454,2]
[420332432,1775979038719,-168.0,0.00014546,2]
[420332433,1775979038740,-500.0,0.00014561,2]
[420332434,1775979038749,-506.0,0.00014562,2]
[420332435,1775979038758,-196.3960556,0.00014562,2]
[420332436,1775979038772,-557.5788265,0.00014581,2]
[420332437,1775979038788,-10463.26119,0.00014593,2]
[420332438,1775979038797,-506.0,0.00014594,2]
[420332439,1775979038807,-506.0,0.00014623,2]
[420332440,1775979038827,-193.91103127,0.00014627,2]
[420332441,1775979038836,-2828.94801485,0.00014627,2]
[420332442,1775979038845,-473.00301298,0.00014636,2]
[420332443,1775979038854,-500.0,0.00014643,2]
[420332444,1775979038868,-506.0,0.00014688,2]
[420332445,1775979038879,-14359.60560683,0.00014701,2]
[420332446,1775979038891,-2815.45505739,0.00014701,2]
[420332447,1775979038906,-3397.67616382,0.00014701,2]
[420332463,1775979046394,-896.75205161,0.00014701,2]
[420332464,1775979046406,-49228.35110486,0.00014701,2]
[420332465,1775979046539,-755.35022984,0.00014701,2]
[420332466,1775979046552,-7107.2208789,0.00014701,2]
[420332467,1775979046695,-2452.93688462,0.00014701,2]
[420332515,1775980233267,-611.0,0.00013467,2]
[420332516,1775980233278,-20.87264066,0.00013467,2]
[420332517,1775980233290,-166.7005745,0.00013467,2]
[420332518,1775980233300,-360.9684117,0.00013667,14]
[420332520,1775980233310,-1000.0,0.00013699,2]
[420332522,1775980233320,-753.52929652,0.00014398,2]
[420332524,1775980233330,-537.6845,0.00014489,2]
[420332526,1775980233341,-2150.738,0.00014489,2]
[420332528,1775980233351,-487.0,0.00014498,2]
[420332530,1775980233361,-487.0,0.00014498,2]
[420332532,1775980233371,-487.0,0.00014498,2]
[420332533,1775980233381,-687.6,0.00014498,2]
[420332534,1775980233391,-13970.0,0.000145,2]
[420332535,1775980233401,-160.0,0.00014513,2]
[420332536,1775980233411,-500.0,0.0001452,2]
[420332537,1775980233421,-151.417098,0.00014597,2]
[420332538,1775980233433,-151.0,0.00014598,2]
[420332539,1775980233443,-151.0,0.00014598,2]
[420332540,1775980233453,-151.0,0.00014599,2]
[420332541,1775980233462,-3035.6398431,0.0001462,2]
[420332542,1775980233472,-500.0,0.00014697,2]
[420332543,1775980233482,-500.0,0.00014699,2]
[420332544,1775980233492,-500.0,0.000147,2]
[420332545,1775980233502,-500.0,0.000147,2]
[420332546,1775980233514,-500.0,0.000147,2]
[420332547,1775980233524,-500.0,0.000147,2]
[420332548,1775980233534,-500.0,0.000147,2]
[420332549,1775980233543,-585.88,0.000147,2]
[420332550,1775980233555,-506.0,0.00014797,2]
[420332551,1775980233565,-506.0,0.0001481,2]
[420332552,1775980233576,-1832.540003,0.00014846,2]
[420332553,1775980233585,-506.0,0.00014908,2]
[420332554,1775980233596,-506.0,0.00014945,2]
[420332555,1775980233605,-506.0,0.0001498,2]
[420332556,1775980233615,-506.0,0.00014981,2]
[420332557,1775980233625,-1000.0,0.00015,10]
[420332558,1775980233634,-3467.52,0.00015,2]
[420332559,1775980233644,-980.0,0.00015,2]
[420332560,1775980233653,-377.0,0.00015,2]
[420332561,1775980233664,-160.0,0.00015,2]
[420332562,1775980233676,-791.0,0.00015,2]
[420332563,1775980233689,-343.61340948,0.00015037,2]
[420332564,1775980233702,-2230.315306,0.00015037,2]
[420332565,1775980233712,-209.258395,0.00015068,2]
[420332566,1775980233721,-1883.82145969,0.0001508,2]
[420332567,1775980233734,-300.0,0.000151,2]
[420332568,1775980233746,-168.0,0.00015142,2]
[420332569,1775980233757,-570.565,0.00015313,2]
[420332570,1775980233766,-200.0978045,0.000154,2]
[420332571,1775980233783,-753.52929648,0.00015458,2]
[420332572,1775980233795,-1832.540003,0.00015471,2]
[420332573,1775980233804,-2207.0,0.00015518,2]
[420332574,1775980233817,-368.0,0.00015518,2]
[420332575,1775980233836,-184.0,0.00015518,2]
[420332576,1775980233845,-441.0,0.00015518,2]
[420332577,1775980233855,-643.51270839,0.00015554,14]
[420332578,1775980233876,-177.0,0.00015567,2]
[420332579,1775980233885,-2312.83697232,0.00015585,2]
[420332580,1775980233895,-194.99977778,0.00015605,14]
[420332581,1775980233910,-168.0,0.00015725,2]
[420332582,1775980233924,-254.19269043,0.00015752,14]
[420332583,1775980233933,-643.51270839,0.0001595,30]
[420332584,1775980233943,-500.0,0.00016,2]
[420332585,1775980233957,-1832.540003,0.00016096,2]
[420332586,1775980233968,-429.21,0.00016116,2]
[420332587,1775980233979,-2398.4119403,0.00016133,2]
[420332588,1775980233991,-600.0,0.00016215,2]
[420332589,1775980234003,-399.0,0.0001629,2]
[420332590,1775980234018,-1174.0,0.0001629,2]
[420332591,1775980234028,-7218.96226129,0.00016338,2]
[420332596,1775980238756,-940.0,0.00016338,2]
[420332597,1775980238771,-282.0,0.00016338,2]
[420332598,1775980238793,-11376.3952611,0.00016338,2]
[420332599,1775980238838,-2826.81153581,0.00016338,2]
[420332600,1775980238912,-2831.78523744,0.00016338,2]
[420332610,1775980241323,-861.0,0.00016338,2]
[420332611,1775980241367,-427.72719031,0.00016338,2]
[420332626,1775980243955,-417.27280969,0.00016338,2]
[420332627,1775980243971,-829.0,0.00016338,2]
[420332628,1775980243983,-1174.28663236,0.00016338,2]
[420332629,1775980243995,-479.44055795,0.00016347,30]
[420332630,1775980246641,-164.07215044,0.00016347,30]
[420332631,1775980246651,-795.0,0.00016347,2]
[420332632,1775980246663,-2112.07893342,0.00016378,2]
[420332633,1775980246672,-847.4063,0.00016438,2]
[420332634,1775980246681,-500.0,0.00016438,2]
[420332635,1775980246691,-500.0,0.00016438,2]
[420332636,1775980246700,-625.0871093,0.00016438,2]
[420332637,1775980246710,-500.0,0.00016438,2]
[420332638,1775980246719,-500.0,0.00016438,2]